bitfinex-derivatives/quotes_SOLF0:USTF0_20241215
["timestamp","ask_amount","ask_price","bid_price","bid_amount"]
[1734229835633,2.0,221.49,221.46,2.2582]
[1734229836129,2.0,221.49,221.45,6.88884495]
[1734229836427,4.2579,221.49,221.45,6.88884495]
[1734229839632,2.0,221.49,221.45,6.88884495]
[1734229839835,2.0,221.49,221.45,9.14714495]
[1734229840238,2.0,221.49,221.45,6.88884495]
[1734229840438,4.2579,221.49,221.45,6.88884495]
[1734229843540,2.2579,221.49,221.45,6.88884495]
[1734229844035,2.911,221.54,221.45,6.88884495]
[1734229844239,2.0,221.53,221.47,6.88884495]
[1734229844633,2.2576,221.52,221.46,2.2581]
[1734229844936,2.2576,221.52,221.47,6.88884495]
[1734229846737,2.0,221.53,221.46,6.88884495]
[1734229846738,2.2577,221.51,221.46,6.88884495]
[1734229850338,2.2577,221.51,221.46,9.14704495]
[1734229850544,4.2575,221.53,221.46,6.88884495]
[1734229851134,2.2576,221.52,221.47,2.2581]
[1734229854437,4.2575,221.54,221.48,9.14684495]
[1734229855639,4.2575,221.54,221.48,6.88884495]
[1734229855942,4.2575,221.54,221.49,2.2579]
[1734229858137,4.2572,221.56,221.51,2.2576]
[1734229858340,2.2572,221.56,221.51,2.2576]
[1734229859844,6.88884495,221.58,221.5,6.88884495]
[1734229860051,11.14594495,221.58,221.53,2.2575]
[1734229861148,4.2571,221.58,221.53,2.2575]
[1734229861351,2.0,221.58,221.54,2.2573]
[1734229863953,12.63154495,221.59,221.53,2.2575]
[1734229866049,12.63154495,221.59,221.52,6.88884495]
[1734229866251,12.63154495,221.59,221.54,2.2574]
[1734229866950,188.71522744,221.73,221.57,6.88884495]
[1734229867154,12.02279715,221.68,221.59,6.88884495]
[1734229867354,6.88884495,221.64,221.57,6.88884495]
[1734229867656,8.88884495,221.64,221.57,6.88884495]
[1734229868453,2.2565,221.63,221.58,2.2569]
[1734229869045,11.14524495,221.64,221.59,2.2569]
[1734229869246,11.14524495,221.64,221.57,6.88884495]
[1734229869852,11.14524495,221.64,221.57,9.14584495]
[1734229870154,4.2564,221.64,221.59,6.88884495]
[1734229870557,2.0,221.64,221.61,6.88884495]
[1734229870955,11.17994495,221.68,221.61,6.88884495]
[1734229871251,2.2564,221.64,221.61,6.88884495]
[1734229872760,4.2911,221.68,221.63,6.88884495]
[1734229872959,2.0,221.67,221.63,6.88884495]
[1734229873559,4.2561,221.67,221.63,6.88884495]
[1734229875255,2.2561,221.67,221.63,6.88884495]
[1734229875458,4.2561,221.67,221.63,6.88884495]
[1734229878762,4.2561,221.67,221.65,6.88884495]
[1734229879368,51.66,221.82,221.65,6.88884495]
[1734229879573,6.88884495,221.72,221.57,2.0]
[1734229879862,6.88884495,221.66,221.6,6.88884495]
[1734229880070,3.4131,221.65,221.6,6.88884495]
[1734229880467,2.8706,221.64,221.6,6.88884495]
[1734229880973,2.8706,221.64,221.55,2.2573]
[1734229881161,2.8706,221.64,221.6,6.88884495]
[1734229881361,2.2565,221.63,221.6,6.88884495]
[1734229881568,2.8706,221.64,221.6,6.88884495]
[1734229882472,2.2566,221.62,221.6,6.88884495]
[1734229882666,2.0,221.61,221.6,6.88884495]
[1734229884671,4.8706,221.64,221.6,6.88884495]
[1734229885270,4.8706,221.64,221.62,6.88884495]
[1734229886171,4.8706,221.64,221.5,2.0]
[1734229886377,4.8706,221.64,221.6,6.88884495]
[1734229887576,2.2566,221.62,221.6,6.88884495]
[1734229887978,4.8706,221.64,221.6,6.88884495]
[1734229889580,2.2565,221.63,221.6,6.88884495]
[1734229889987,2.0,221.64,221.6,6.88884495]
[1734229891676,4.2564,221.64,221.6,6.88884495]
[1734229894376,2.0,221.64,221.6,6.88884495]
[1734229894680,8.88884495,221.64,221.5,2.0]
[1734229894979,4.512,221.63,221.57,6.88884495]
[1734229895382,2.2568,221.6,221.54,2.2574]
[1734229895580,4.512,221.63,221.57,6.88884495]
[1734229895581,2.0,221.59,221.57,6.88884495]
[1734229895983,4.2569,221.59,221.57,6.88884495]
[1734229896784,2.0,221.59,221.57,6.88884495]
[1734229897489,2.0,221.59,221.58,6.88884495]
[1734229901087,2.2567,221.62,221.58,6.88884495]
[1734229901294,2.0,221.61,221.58,6.88884495]
[1734229903389,4.2567,221.61,221.58,6.88884495]
[1734229903692,2.0,221.61,221.5,2.0]
[1734229903893,2.0,221.61,221.56,6.88884495]
[1734229904297,8.88884495,221.61,221.49,5.39684977]
[1734229904487,8.88884495,221.61,221.43,2.0235]
[1734229904688,8.88884495,221.61,221.43,4.0235]
[1734229904893,8.88884495,221.61,221.53,6.88884495]
[1734229906592,2.2573,221.55,221.53,6.88884495]
[1734229906787,2.0,221.54,221.53,6.88884495]
[1734229910993,2.2571,221.57,221.53,6.88884495]
[1734229911201,4.2571,221.57,221.56,6.88884495]
[1734229912502,2.0,221.58,221.56,6.88884495]
[1734229912699,2.0,221.58,221.57,6.88884495]
[1734229913398,2.2569,221.59,221.57,6.88884495]
[1734229913702,4.2569,221.59,221.57,6.88884495]
[1734229920110,2.0,221.59,221.57,6.88884495]
[1734229921805,2.0,221.62,221.57,6.88884495]
[1734229922004,2.0,221.62,221.6,6.88884495]
[1734229922405,4.2566,221.62,221.6,6.88884495]
[1734229925514,4.2566,221.62,221.56,2.2572]
[1734229925811,4.2566,221.62,221.59,6.88884495]
[1734229929112,2.0,221.61,221.59,6.88884495]
[1734229935616,5.5407902,221.65,221.59,6.88884495]
[1734229935817,5.5407902,221.65,221.52,2.0]
[1734229935818,2.0,221.64,221.61,6.88884495]
[1734229936220,4.2564,221.64,221.61,6.88884495]
[1734229940717,2.0,221.64,221.61,6.88884495]
[1734229940918,2.2565,221.63,221.61,6.88884495]
[1734229941216,2.0,221.64,221.47,5.39023446]
[1734229941417,2.257,221.58,221.54,6.88884495]
[1734229941621,4.257,221.58,221.54,6.88884495]
[1734229942719,2.0,221.58,221.56,6.88884495]
[1734229956837,2.0,221.58,221.55,6.88884495]
[1734229962536,2.0,221.58,221.54,2.2574]
[1734229962742,2.0,221.58,221.55,6.88884495]
[1734229964642,2.0,221.58,221.57,6.88884495]
[1734229964943,2.0,221.58,221.55,6.88884495]
[1734229965144,2.0,221.58,221.55,9.14614495]
[1734229968946,2.2568,221.6,221.55,9.14614495]
[1734229969143,2.0,221.59,221.55,9.14614495]
[1734229969543,2.0,221.59,221.53,2.2574]
[1734229969741,2.257,221.58,221.53,2.2574]
[1734229969941,2.257,221.58,221.53,9.14624495]
[1734229970136,2.0,221.59,221.47,2.0]
[1734229970341,2.0,221.59,221.52,6.88884495]
[1734229971341,2.2571,221.58,221.52,6.88884495]
[1734229971847,2.0,221.59,221.52,6.88884495]
[1734229972749,2.2571,221.57,221.52,6.88884495]
[1734229973140,2.2571,221.57,221.48,5.46569267]
[1734229973141,0.1626,221.7,221.56,6.88884495]
[1734229973344,2.0,221.61,221.58,6.88884495]
[1734229973849,2.0,221.6,221.56,6.88884495]
[1734229976850,2.0,221.6,221.55,2.2572]
[1734229977248,2.0,221.6,221.55,9.14604495]
[1734229978248,2.257,221.58,221.53,6.88884495]
[1734229980247,2.2573,221.56,221.5,2.2577]
[1734229980454,2.0,221.55,221.52,6.88884495]
[1734229980648,2.0,221.54,221.52,6.88884495]
[1734229982045,2.257,221.59,221.54,2.2574]
[1734229982251,8.3634856,221.63,221.55,6.88884495]
[1734229982252,2.0,221.58,221.55,6.88884495]
[1734229983152,2.0,221.58,221.55,9.14614495]
[1734229984257,2.0,221.59,221.55,9.14614495]
[1734229984456,2.0,221.59,221.55,6.88884495]
[1734229984757,2.0,221.59,221.57,6.88884495]
[1734229984961,2.0,221.59,221.56,2.2572]
[1734229988468,2.0,221.59,221.55,6.88884495]
[1734229992471,4.2569,221.59,221.53,6.88884495]
[1734229992662,2.0,221.59,221.53,6.88884495]
[1734229993472,2.2571,221.57,221.5,2.2577]
[1734229993674,8.88884495,221.59,221.47,5.33884827]
[1734229993868,8.88884495,221.59,221.46,2.0]
[1734229993869,6.88884495,221.57,221.43,4.0235]
[1734229994065,2.2575,221.53,221.48,2.258]
[1734229994276,4.2575,221.53,221.5,6.88884495]
[1734229997171,4.2575,221.53,221.47,2.258]
[1734229997376,4.2575,221.53,221.49,6.88884495]
[1734229997674,2.0,221.53,221.48,6.88884495]
[1734229998175,8.88884495,221.53,221.47,6.88884495]
[1734229998364,2.0,221.55,221.49,6.88884495]
[1734229999568,2.2575,221.53,221.49,6.88884495]
[1734229999770,2.0,221.55,221.49,6.88884495]
[1734230000372,2.2576,221.52,221.49,6.88884495]
[1734230000571,2.0,221.51,221.49,6.88884495]
[1734230004286,2.0,221.51,221.47,6.88884495]
[1734230006184,2.0,221.51,221.39,23.84800598]
[1734230006482,6.88884495,221.5,221.44,6.88884495]
[1734230006979,2.0,221.51,221.46,6.88884495]
[1734230008684,4.2577,221.51,221.46,6.88884495]
[1734230008883,2.0,221.51,221.46,6.88884495]
[1734230009679,2.2578,221.5,221.46,6.88884495]
[1734230012891,6.88884495,221.52,221.46,6.88884495]
[1734230012892,2.2577,221.52,221.48,6.88884495]
[1734230013089,2.8155,221.56,221.48,6.88884495]
[1734230013090,2.0,221.51,221.48,6.88884495]
[1734230013890,2.0,221.51,221.4,5.42837961]
[1734230014086,2.0,221.51,221.47,6.88884495]
[1734230015281,2.0,221.51,221.4,5.42837961]
[1734230015487,8.88884495,221.51,221.4,5.42837961]
[1734230015691,8.88884495,221.51,221.43,6.88884495]
[1734230015987,6.88884495,221.49,221.43,6.88884495]
[1734230016292,2.2582,221.47,221.43,6.88884495]
[1734230016492,8.88884495,221.51,221.43,6.88884495]
[1734230016689,8.88884495,221.51,221.45,6.88884495]
[1734230017689,2.258,221.49,221.45,6.88884495]
[1734230019290,2.258,221.49,221.43,2.2585]
[1734230019591,2.258,221.49,221.45,6.88884495]
[1734230020185,2.258,221.48,221.42,2.2586]
[1734230020384,8.88884495,221.51,221.43,6.88884495]
[1734230021589,2.2581,221.47,221.43,6.88884495]
[1734230023590,2.2581,221.47,221.41,2.2587]
[1734230023792,2.2581,221.47,221.43,6.88884495]
[1734230023989,2.0,221.47,221.29,25.06251932]
[1734230024190,2.0,221.47,221.41,6.88884495]
[1734230024496,2.0,221.47,221.38,5.29919918]
[1734230024697,2.2582,221.46,221.42,6.88884495]
[1734230025391,2.2584,221.44,221.42,6.88884495]
[1734230026192,2.0,221.47,221.42,6.88884495]
[1734230026388,2.0,221.47,221.44,6.88884495]
[1734230027596,4.2581,221.47,221.44,6.88884495]
[1734230028899,2.2582,221.46,221.44,6.88884495]
[1734230029891,4.2581,221.47,221.44,6.88884495]
[1734230034705,4.2581,221.47,221.42,6.88884495]
[1734230037302,4.2581,221.47,221.44,6.88884495]
[1734230041214,2.0,221.47,221.39,2.2588]
[1734230041410,8.88884495,221.47,221.39,2.2588]
[1734230041612,8.88884495,221.47,221.4,6.88884495]
[1734230042112,2.2583,221.46,221.4,6.88884495]
[1734230042309,2.2583,221.46,221.42,6.88884495]
[1734230044222,2.0,221.47,221.42,6.88884495]
[1734230045416,1.4512,221.52,221.46,6.88884495]
[1734230045618,2.0,221.51,221.46,6.88884495]
[1734230045815,2.0,221.51,221.48,6.88884495]
[1734230046723,4.2577,221.51,221.48,6.88884495]
[1734230047421,2.2577,221.51,221.48,6.88884495]
[1734230047625,2.2577,221.51,221.45,2.2583]
[1734230047922,2.2578,221.5,221.45,6.88884495]
[1734230048316,12.59774495,221.52,221.45,9.14714495]
[1734230048919,10.34004495,221.52,221.38,2.0]
[1734230049121,2.2579,221.49,221.46,6.88884495]
[1734230049420,10.34004495,221.52,221.46,6.88884495]
[1734230050718,2.2578,221.51,221.46,6.88884495]
[1734230053222,2.2576,221.52,221.48,6.88884495]
[1734230053422,2.0,221.52,221.48,6.88884495]
[1734230054418,2.2575,221.53,221.48,6.88884495]
[1734230057429,2.2575,221.53,221.47,2.2581]
[1734230057623,2.2575,221.53,221.48,6.88884495]
[1734230060929,2.2575,221.53,221.47,2.2581]
[1734230061131,2.2575,221.53,221.49,6.88884495]
[1734230062025,6.88884495,221.52,221.45,6.88884495]
[1734230062431,2.2579,221.49,221.45,6.88884495]
[1734230063935,2.2579,221.49,221.47,6.88884495]
[1734230064326,2.0,221.5,221.47,6.88884495]
[1734230064530,4.2576,221.53,221.49,6.88884495]
[1734230065027,2.2576,221.53,221.49,6.88884495]
[1734230065223,4.2574,221.54,221.49,6.88884495]
[1734230066933,8.88884495,221.54,221.47,6.88884495]
[1734230067733,8.88884495,221.54,221.46,2.2581]
[1734230068031,8.88884495,221.54,221.46,6.88884495]
[1734230069235,2.2579,221.49,221.46,6.88884495]
[1734230070531,2.0,221.5,221.46,6.88884495]
[1734230071235,4.2578,221.5,221.46,6.88884495]
[1734230071435,4.2578,221.5,221.45,2.2583]
[1734230071635,4.2578,221.5,221.47,6.88884495]
[1734230073832,2.0,221.5,221.47,6.88884495]
[1734230074033,2.0,221.5,221.49,6.88884495]
[1734230075240,2.0,221.53,221.49,6.88884495]
[1734230075540,2.2574,221.54,221.49,6.88884495]
[1734230075736,2.2574,221.54,221.49,9.14674495]
[1734230075937,4.2573,221.55,221.49,9.14674495]
[1734230076435,2.0,221.55,221.49,9.14674495]
[1734230076635,2.2574,221.54,221.49,6.88884495]
[1734230079341,2.2574,221.54,221.48,2.258]
[1734230079541,2.2574,221.54,221.48,9.14684495]
[1734230081145,2.0,221.55,221.48,6.88884495]
[1734230082747,2.2576,221.52,221.48,6.88884495]
[1734230084247,2.2576,221.52,221.46,2.2581]
[1734230084547,2.2576,221.52,221.48,6.88884495]
[1734230086144,2.2577,221.51,221.48,6.88884495]
[1734230086348,2.2577,221.51,221.46,6.88884495]
[1734230088254,6.88884495,221.52,221.44,2.2584]
[1734230088444,2.0,221.51,221.44,2.2584]
[1734230088744,2.0,221.51,221.45,6.88884495]
[1734230089347,2.258,221.48,221.45,6.88884495]
[1734230097349,93.11115505,221.45,221.44,2.2584]
[1734230097651,93.11115505,221.45,221.44,9.14724495]
[1734230102644,93.11115505,221.45,221.44,11.14724495]
[1734230104950,36.24928999,221.45,221.44,11.14724495]
[1734230105661,2.0,221.57,221.44,2.0]
[1734230105855,2.0,221.57,221.52,6.88884495]
[1734230106054,2.2571,221.57,221.52,6.88884495]
[1734230109561,2.2571,221.57,221.54,6.88884495]
[1734230110055,2.8877,221.65,221.54,6.88884495]
[1734230110255,2.0,221.6,221.56,6.88884495]
[1734230110461,2.0,221.63,221.58,6.88884495]
[1734230110650,2.0,221.63,221.58,9.14574495]
[1734230111658,4.2564,221.64,221.58,9.14574495]
[1734230115963,2.0,221.64,221.52,2.0]
[1734230116167,6.88884495,221.63,221.56,6.88884495]
[1734230117562,2.2567,221.61,221.56,6.88884495]
[1734230117962,6.88884495,221.63,221.53,2.2575]
[1734230118163,6.88884495,221.63,221.55,6.88884495]
[1734230118666,2.2567,221.61,221.55,6.88884495]
[1734230118867,2.0,221.6,221.57,6.88884495]
[1734230119568,4.2569,221.6,221.57,6.88884495]
[1734230121170,2.2569,221.59,221.53,5.40750065]
[1734230121360,2.2569,221.59,221.56,6.88884495]
[1734230123263,2.0,221.6,221.56,6.88884495]
[1734230123459,2.0,221.6,221.58,6.88884495]
[1734230123866,4.2565,221.63,221.58,6.88884495]
[1734230124061,9.77654495,221.65,221.58,6.88884495]
[1734230124263,4.2564,221.64,221.58,6.88884495]
[1734230124467,2.0,221.64,221.58,6.88884495]
[1734230125573,4.2564,221.64,221.58,9.14584495]
[1734230125774,2.2564,221.64,221.58,9.14584495]
[1734230132473,6.88884495,221.64,221.58,6.88884495]
[1734230133572,2.2567,221.62,221.58,6.88884495]
[1734230133772,6.88884495,221.64,221.58,9.14584495]
[1734230134580,2.2565,221.64,221.58,9.14584495]
[1734230137279,4.8877,221.65,221.59,2.2568]
[1734230137478,4.8877,221.65,221.6,6.88884495]
[1734230138580,2.2564,221.64,221.6,6.88884495]
[1734230139076,0.23029,221.76,221.62,6.88884495]
[1734230139277,6.88884495,221.71,221.64,6.88884495]
[1734230139580,2.0,221.7,221.66,6.88884495]
[1734230140082,6.88884495,221.71,221.66,6.88884495]
[1734230140284,2.0,221.7,221.66,6.88884495]
[1734230140484,4.2558,221.7,221.66,6.88884495]
[1734230140783,2.0,221.71,221.66,6.88884495]
[1734230141582,34.46156615,221.72,221.66,9.14504495]
[1734230141776,32.20596615,221.72,221.66,6.88884495]
[1734230141976,39.0948111,221.72,221.66,6.88884495]
[1734230143684,2.2558,221.7,221.66,6.88884495]
[1734230151883,2.0,221.72,221.66,6.88884495]
[1734230152086,4.2556,221.72,221.66,6.88884495]
[1734230152286,2.0,221.72,221.68,6.88884495]
[1734230153287,2.2557,221.71,221.68,6.88884495]
[1734230162984,2.2557,221.71,221.65,5.46760836]
[1734230162985,8.88884495,221.72,221.54,2.0159]
[1734230163190,2.256,221.68,221.65,6.88884495]
[1734230163892,8.88884495,221.72,221.64,6.88884495]
[1734230163893,2.2561,221.67,221.64,6.88884495]
[1734230164591,2.0,221.68,221.64,6.88884495]
[1734230165686,4.256,221.68,221.64,6.88884495]
[1734230166286,2.0,221.68,221.54,2.0159]
[1734230166484,2.0,221.68,221.63,6.88884495]
[1734230168891,2.2565,221.63,221.57,2.257]
[1734230169086,2.2565,221.63,221.61,6.88884495]
[1734230171589,2.2563,221.65,221.61,6.88884495]
[1734230171789,2.2563,221.65,221.63,6.88884495]
[1734230173100,2.2561,221.67,221.63,6.88884495]
[1734230174895,6.88884495,221.71,221.7,52.7439]
[1734230175092,8.88884495,221.71,221.7,52.7439]
[1734230176698,11.14444495,221.71,221.7,52.7439]
[1734230178698,11.14444495,221.71,221.7,39.2898]
[1734230179100,4.2556,221.71,221.7,39.2898]
[1734230179298,11.14444495,221.71,221.7,39.2898]
[1734230179999,4.2556,221.71,221.7,39.2898]
[1734230180201,11.14444495,221.71,221.7,39.2898]
[1734230182496,16.87739283,221.71,221.7,39.2898]
[1734230186308,23.94176595,221.71,221.7,39.2898]
[1734230186703,34.06519393,221.71,221.7,39.2898]
[1734230189006,27.17634898,221.71,221.7,39.2898]
[1734230189207,34.06519393,221.71,221.7,39.2898]
[1734230189707,23.94176595,221.71,221.7,39.2898]
[1734230190301,34.06423446,221.71,221.7,39.2898]
[1734230191103,17.052921,221.71,221.7,39.2898]
[1734230191304,9.98854788,221.71,221.7,39.2898]
[1734230191511,4.2556,221.71,221.7,39.2898]
[1734230200824,9.71485139,221.75,221.72,28.14535505]
[1734230201026,6.88884495,221.73,221.72,28.14535505]
[1734230201326,14.87945076,221.73,221.72,28.14535505]
[1734230201527,19.69191249,221.73,221.61,2.9739]
[1734230201828,6.88884495,221.68,221.61,2.9739]
[1734230202016,6.88884495,221.68,221.6,5.4339157]
[1734230202017,6.88884495,221.66,221.56,2.2571]
[1734230202220,8.88884495,221.66,221.59,6.88884495]
[1734230203224,2.2565,221.63,221.59,6.88884495]
[1734230205429,2.2566,221.62,221.59,6.88884495]
[1734230206326,2.2566,221.62,221.59,12.21379234]
[1734230206829,2.2567,221.61,221.59,6.88884495]
[1734230207420,2.2567,221.61,221.57,1.438]
[1734230207622,9.71485139,221.75,221.53,2.93]
[1734230207623,6.88884495,221.6,221.53,2.93]
[1734230207828,8.88884495,221.6,221.53,2.93]
[1734230208124,2.2573,221.55,221.53,9.81884495]
[1734230208330,2.2573,221.55,221.53,6.88884495]
[1734230208927,2.2573,221.55,221.52,6.88884495]
[1734230209129,2.2572,221.57,221.52,12.38493922]
[1734230209923,2.2572,221.57,221.54,6.88884495]
[1734230210521,8.88884495,221.6,221.54,6.88884495]
[1734230210725,2.0,221.6,221.56,6.88884495]
[1734230215435,0.22181,221.74,221.58,6.88884495]
[1734230215738,2.2565,221.63,221.58,6.88884495]
[1734230216232,2.0,221.64,221.58,6.88884495]
[1734230217343,5.73027161,221.71,221.58,6.88884495]
[1734230217634,0.22181,221.74,221.6,6.88884495]
[1734230217635,6.88884495,221.68,221.6,6.88884495]
[1734230217838,2.0,221.67,221.6,6.88884495]
[1734230218335,2.2562,221.66,221.6,9.14554495]
[1734230218640,2.0,221.67,221.62,6.88884495]
[1734230219639,4.2561,221.67,221.62,6.88884495]
[1734230219938,2.0,221.67,221.62,6.88884495]
[1734230220636,2.2562,221.66,221.62,6.88884495]
[1734230221140,8.88884495,221.68,221.62,6.88884495]
[1734230222741,11.14484495,221.68,221.62,6.88884495]
[1734230224246,9.14484495,221.68,221.62,6.88884495]
[1734230224443,11.14484495,221.68,221.62,6.88884495]
[1734230225940,2.2561,221.67,221.62,6.88884495]
[1734230229240,2.2562,221.66,221.62,6.88884495]
[1734230233655,6.88884495,221.67,221.6,6.88884495]
[1734230234054,2.2566,221.62,221.56,2.2571]
[1734230234255,2.2566,221.62,221.59,6.88884495]
[1734230238354,2.2567,221.61,221.55,2.2572]
[1734230238555,2.0,221.64,221.57,6.88884495]
[1734230238953,6.88884495,221.63,221.57,6.88884495]
[1734230239148,6.88884495,221.63,221.56,6.88884495]
[1734230239556,2.2569,221.59,221.54,2.2573]
[1734230239750,2.2569,221.59,221.56,6.88884495]
[1734230242157,2.2569,221.59,221.54,2.2574]
[1734230242358,2.2569,221.59,221.56,6.88884495]
[1734230243259,2.257,221.58,221.56,6.88884495]
[1734230243461,2.0,221.6,221.56,6.88884495]
[1734230243660,2.0,221.6,221.54,6.88884495]
[1734230244761,2.2571,221.57,221.54,6.88884495]
[1734230245464,2.2571,221.57,221.51,2.2577]
[1734230245658,2.2571,221.57,221.53,6.88884495]
[1734230246558,2.2572,221.56,221.53,6.88884495]
[1734230258264,2.0,221.6,221.53,6.88884495]
[1734230259568,2.2571,221.57,221.53,6.88884495]
[1734230265276,2.2569,221.59,221.53,9.14634495]
[1734230265471,2.2569,221.59,221.53,6.88884495]
[1734230266568,2.2569,221.59,221.54,2.2574]
[1734230268779,2.2569,221.59,221.53,6.88884495]
[1734230268973,2.2569,221.59,221.53,9.14634495]
[1734230273184,2.2569,221.59,221.54,2.2574]
[1734230276078,2.2569,221.59,221.53,9.14634495]
[1734230277585,2.257,221.58,221.52,2.2576]
[1734230277882,2.257,221.58,221.51,5.37546629]
[1734230277883,6.88884495,221.59,221.51,5.37546629]
[1734230278077,6.88884495,221.59,221.51,12.26431124]
[1734230278276,6.88884495,221.59,221.51,6.88884495]
[1734230278582,2.2572,221.57,221.51,6.88884495]
[1734230278776,2.0,221.56,221.51,6.88884495]
[1734230279675,4.2572,221.56,221.51,6.88884495]
[1734230280977,4.2572,221.56,221.51,9.14654495]
[1734230281373,2.0,221.56,221.53,6.88884495]
[1734230282480,2.0,221.56,221.54,2.2573]
[1734230283374,4.2569,221.59,221.54,2.2573]
[1734230284380,2.0,221.59,221.53,6.88884495]
[1734230284577,2.257,221.58,221.53,6.88884495]
[1734230286279,4.2569,221.59,221.53,9.14634495]
[1734230289991,4.2569,221.59,221.53,2.2575]
[1734230290188,2.257,221.58,221.52,2.2576]
[1734230290994,2.0,221.59,221.51,12.28810683]
[1734230291200,2.2571,221.57,221.51,12.28810683]
[1734230291495,8.88884495,221.59,221.51,12.28810683]
[1734230292691,2.2572,221.56,221.51,12.28810683]
[1734230293189,2.2574,221.55,221.5,6.88884495]
[1734230293499,1.98,221.55,221.49,5.40438659]
[1734230293792,8.86884495,221.55,221.49,5.40438659]
[1734230294701,2.2575,221.53,221.49,5.40438659]
[1734230294898,2.2575,221.53,221.5,6.88884495]
[1734230295496,4.2374,221.55,221.5,6.88884495]
[1734230295696,1.98,221.55,221.5,6.88884495]
[1734230296097,2.2575,221.53,221.5,6.88884495]
[1734230296691,1.98,221.55,221.5,6.88884495]
[1734230296896,1.98,221.55,221.5,9.14654495]
[1734230298400,4.2373,221.55,221.5,9.14654495]
[1734230298602,1.98,221.55,221.49,5.40438659]
[1734230298997,1.98,221.55,221.48,6.88884495]
[1734230298998,2.2577,221.51,221.48,6.88884495]
[1734230299700,2.2576,221.52,221.48,6.88884495]
[1734230302998,2.2575,221.54,221.48,6.88884495]
[1734230303207,1.98,221.55,221.48,6.88884495]
[1734230304601,2.2575,221.53,221.48,6.88884495]
[1734230304798,1.98,221.55,221.48,6.88884495]
[1734230304799,6.88884495,221.54,221.48,6.88884495]
[1734230305005,6.88884495,221.52,221.41,2.8422]
[1734230305204,1.98,221.51,221.44,6.88884495]
[1734230305705,6.88884495,221.5,221.43,6.88884495]
[1734230306707,2.2579,221.49,221.43,14.53777096]
[1734230306906,6.88884495,221.5,221.39,1.4773]
[1734230307105,2.2581,221.47,221.42,6.88884495]
[1734230307310,4.2381,221.47,221.42,6.88884495]
[1734230311903,6.88884495,221.46,221.35,3.0118]
[1734230312108,6.88884495,221.46,221.39,6.88884495]
[1734230313610,2.2583,221.45,221.4,2.2588]
[1734230315203,2.2584,221.44,221.38,2.2589]
[1734230315404,2.2584,221.44,221.38,9.14774495]
[1734230316209,9.14724495,221.44,221.38,9.14774495]
[1734230317412,9.14724495,221.44,221.39,2.2589]
[1734230318313,2.0,221.44,221.38,12.29586403]
[1734230318515,2.0,221.44,221.38,5.40701908]
[1734230318715,2.0,221.44,221.38,12.29586403]
[1734230319111,2.0,221.44,221.4,2.2588]
[1734230321417,6.88884495,221.57,221.42,6.88884495]
[1734230321611,2.0,221.6,221.51,6.88884495]
[1734230321811,6.88884495,221.58,221.51,6.88884495]
[1734230322010,6.88884495,221.58,221.53,2.2574]
[1734230322815,4.2568,221.6,221.53,2.2574]
[1734230323015,6.88884495,221.58,221.53,2.2574]
[1734230324814,6.88884495,221.58,221.51,9.14644495]
[1734230325615,6.88884495,221.58,221.51,6.88884495]
[1734230325917,6.88884495,221.58,221.52,2.2576]
[1734230328519,6.88884495,221.58,221.54,2.2574]
[1734230329122,2.9408,221.62,221.56,2.2571]
[1734230329321,1.98,221.61,221.56,2.2571]
[1734230329619,6.88884495,221.61,221.56,2.2571]
[1734230332215,6.88884495,221.61,221.57,2.257]
[1734230332415,1.98,221.62,221.57,2.257]
[1734230333012,12.63774495,221.63,221.57,2.257]
[1734230337824,6.88884495,221.62,221.57,2.257]
[1734230342425,9.14544495,221.62,221.56,7.79521015]
[1734230344640,6.88884495,221.62,221.54,2.2573]
[1734230344834,6.88884495,221.6,221.54,2.2573]
[1734230345138,9.14564495,221.6,221.55,7.75856607]
[1734230347536,2.2568,221.6,221.55,14.64741102]
[1734230348931,6.88884495,221.62,221.55,6.88884495]
[1734230349132,3.4924,221.63,221.52,2.2575]
[1734230349133,2.257,221.58,221.52,2.2575]
[1734230349333,1.98,221.58,221.52,6.88884495]